bitfinex/quotes_SOLUSD_20241113
["timestamp","ask_amount","ask_price","bid_price","bid_amount"]
[1731531754309,4.7404,210.95,210.88,38.30674529]
[1731531755213,38.30674529,210.98,210.88,54.90364529]
[1731531755715,4.7397,210.99,210.88,54.90364529]
[1731531755716,4.7397,210.99,210.9,38.30674529]
[1731531756806,4.7397,210.99,210.91,0.12549]
[1731531757412,30.7872,211.06,210.91,0.12549]
[1731531757413,4.7392,211.01,210.93,0.12549]
[1731531757619,38.30674529,211.04,210.94,38.30674529]
[1731531758004,38.30674529,211.06,210.98,38.30674529]
[1731531758521,38.30674529,211.08,211.0,0.12549]
[1731531758825,38.30674529,211.08,211.0,38.43223529]
[1731531759818,38.30674529,211.06,210.99,16.5884]
[1731531760024,38.30674529,211.06,210.93,20.0]
[1731531760025,38.30674529,211.0,210.92,4.741]
[1731531760194,38.30674529,210.98,210.88,38.30674529]
[1731531760395,38.30674529,210.98,210.89,4.7418]
[1731531760601,43.04654529,210.98,210.89,16.5963]
[1731531761017,38.30674529,210.91,210.85,4.7425]
[1731531761317,38.30674529,210.88,210.8,16.6033]
[1731531761521,38.30674529,210.88,210.81,0.12549]
[1731531761825,38.30674529,210.88,210.8,16.6033]
[1731531762733,38.30674529,210.86,210.81,0.12549]
[1731531763105,38.30674529,210.86,210.78,54.91144529]
[1731531763629,38.30674529,210.86,210.79,0.12549]
[1731531764125,38.30674529,210.86,210.81,0.12549]
[1731531764506,38.30674529,210.86,210.8,16.22879]
[1731531766326,38.30674529,210.82,210.75,11.8621]
[1731531766734,38.30674529,210.82,210.75,16.607]
[1731531767599,4.7426,210.86,210.75,16.607]
[1731531767600,38.30674529,210.86,210.77,0.12549]
[1731531768005,38.30674529,210.86,210.79,0.12549]
[1731531768729,45.32884529,210.82,210.73,14.46956007]
[1731531768912,38.30674529,210.8,210.73,19.21486007]
[1731531769114,38.30674529,210.8,210.73,16.6083]
[1731531769836,38.30674529,210.8,210.73,11.863]
[1731531770716,38.30674529,210.82,210.74,0.12549]
[1731531771516,38.30674529,210.82,210.74,38.43223529]
[1731531771725,38.30674529,210.89,210.78,38.30674529]
[1731531771914,38.30674529,210.87,210.78,43.05074529]
[1731531772315,38.30674529,210.87,210.79,0.12549]
[1731531772514,11.7635,210.91,210.74,50.16964529]
[1731531772515,38.30674529,210.82,210.74,50.16964529]
[1731531773321,0.2,210.88,210.74,53.91474529]
[1731531773322,38.30674529,210.84,210.74,53.91474529]
[1731531773527,38.30674529,210.84,210.66,42.2822]
[1731531773528,38.30674529,210.79,210.7,38.30674529]
[1731531773832,38.30674529,210.77,210.69,11.8657]
[1731531774333,23.776884,210.83,210.7,38.30674529]
[1731531774334,38.30674529,210.79,210.7,38.30674529]
[1731531774709,38.30674529,210.81,210.7,38.30674529]
[1731531774910,38.30674529,210.81,210.69,16.612]
[1731531774911,38.30674529,210.81,210.72,38.30674529]
[1731531775411,38.30674529,210.83,210.75,0.12549]
[1731531775619,11.955,210.89,210.75,0.12549]
[1731531775620,43.04954529,210.85,210.76,38.30674529]
[1731531776537,38.30674529,210.89,210.8,38.30674529]
[1731531777814,45.32884529,210.91,210.82,38.30674529]
[1731531778133,7.0221,210.91,210.84,38.30674529]
[1731531779913,7.0221,210.91,210.85,4.7427]
[1731531780117,38.30674529,210.95,210.86,38.30674529]
[1731531780305,43.04724529,210.95,210.86,38.30674529]
[1731531780710,38.30674529,210.89,210.81,11.8588]
[1731531781234,38.30674529,210.85,210.77,4.7443]
[1731531781437,38.30674529,210.85,210.76,54.91274529]
[1731531781732,38.30674529,210.83,210.76,11.8613]
[1731531782033,38.30674529,210.83,210.76,16.606]
[1731531782413,38.30674529,210.83,210.76,54.91274529]
[1731531783331,4.7402,210.96,210.82,38.30674529]
[1731531783543,38.30674529,210.95,210.86,38.30674529]
[1731531783910,4.7406,210.94,210.87,4.7422]
[1731531784941,17.7056,211.02,210.9,38.30674529]
[1731531784942,38.30674529,210.99,210.9,38.30674529]
[1731531785130,38.30674529,211.01,210.92,38.30674529]
[1731531785436,43.04584529,211.01,210.92,38.30674529]
[1731531785625,43.04604529,211.01,210.92,38.30674529]
[1731531785812,43.04604529,211.01,210.92,50.15934529]
[1731531786010,38.30674529,210.99,210.92,11.8526]
[1731531786211,38.30674529,210.95,210.88,11.855]
[1731531786619,38.30674529,210.93,210.88,11.855]
[1731531786814,38.30674529,210.95,210.88,16.597]
[1731531787014,38.30674529,210.95,210.86,43.04904529]
[1731531787529,38.30674529,210.95,210.87,0.12549]
[1731531787918,38.30674529,210.95,210.88,4.742]
[1731531788424,38.30674529,210.95,210.88,16.597]
[1731531788740,43.04734529,210.95,210.86,38.30674529]
[1731531788925,38.30674529,210.89,210.81,4.7435]
[1731531789126,38.30674529,210.89,210.8,38.30674529]
[1731531789448,38.30674529,210.87,210.79,16.6035]
[1731531789639,38.30674529,210.89,210.8,38.30674529]
[1731531789835,7.7378,210.92,210.85,16.5994]
[1731531790245,7.7378,210.92,210.85,11.8567]
[1731531790542,38.30674529,210.87,210.78,38.30674529]
[1731531790714,38.30674529,210.82,210.74,38.30674529]
[1731531790919,38.30674529,210.8,210.72,50.17024529]
[1731531791152,38.30674529,210.78,210.72,11.8635]
[1731531791336,38.30674529,210.78,210.7,38.30674529]
[1731531791845,38.30674529,210.78,210.69,11.8657]
[1731531791846,38.30674529,210.76,210.69,11.8657]
[1731531792061,4.7449,210.75,210.69,11.8657]
[1731531792223,4.7449,210.75,210.67,0.4652158]
[1731531792418,38.30674529,210.72,210.67,5.2119158]
[1731531792621,38.30674529,210.76,210.67,55.38556109]
[1731531792927,46.12274529,210.78,210.69,38.30674529]
[1731531793240,0.1,210.85,210.67,17.0788158]
[1731531793241,43.05014529,210.82,210.73,38.30674529]
[1731531793546,7.6472,210.84,210.75,38.30674529]
[1731531793547,45.95394529,210.84,210.75,38.30674529]
[1731531793843,50.69684529,210.84,210.75,38.30674529]
[1731531794022,7.6472,210.84,210.77,38.30674529]
[1731531794228,45.95394529,210.84,210.76,16.6065]
[1731531794547,50.69684529,210.84,210.76,16.6065]
[1731531794761,38.30674529,210.82,210.73,43.05194529]
[1731531795122,38.30674529,210.82,210.73,38.30674529]
[1731531795341,38.30674529,210.82,210.73,54.91534529]
[1731531795642,38.30674529,210.8,210.73,11.8635]
[1731531795819,38.30674529,210.82,210.73,54.91564529]
[1731531796029,0.1,210.9,210.78,38.30674529]
[1731531796226,38.30674529,210.82,210.74,38.30674529]
[1731531796945,38.30674529,210.87,210.78,38.30674529]
[1731531797125,38.30674529,210.87,210.8,38.30674529]
[1731531797746,4.7413,210.91,210.8,38.30674529]
[1731531797747,38.30674529,210.89,210.8,38.30674529]
[1731531797943,4.742,210.88,210.8,38.30674529]
[1731531798146,43.04854529,210.89,210.8,43.05044529]
[1731531798445,38.30674529,210.91,210.82,38.30674529]
[1731531798632,38.30674529,210.89,210.8,54.90994529]
[1731531798834,38.30674529,210.91,210.82,38.30674529]
[1731531799038,38.30674529,210.85,210.76,38.30674529]
[1731531799343,38.30674529,210.81,210.73,4.7452]
[1731531799679,38.30674529,210.81,210.68,38.30674529]
[1731531799680,38.30674529,210.75,210.68,38.30674529]
[1731531799849,38.30674529,210.73,210.67,0.4652158]
[1731531800030,43.05234529,210.73,210.67,0.4652158]
[1731531800340,7.5502,210.81,210.72,38.30674529]
[1731531800539,38.30674529,210.83,210.68,0.12549]
[1731531800540,38.30674529,210.83,210.75,38.30674529]
[1731531800743,43.04994529,210.83,210.73,38.30674529]
[1731531801041,38.30674529,210.79,210.71,38.30674529]
[1731531802125,38.30674529,210.79,210.72,16.6096]
[1731531802342,38.30674529,210.81,210.72,16.6096]
[1731531802526,38.30674529,210.85,210.77,38.30674529]
[1731531802733,38.30674529,210.91,210.83,38.30674529]
[1731531802949,7.8471,210.92,210.83,38.30674529]
[1731531803468,38.30674529,210.89,210.81,38.30674529]
[1731531803633,38.30674529,210.85,210.77,38.43223529]
[1731531804551,38.30674529,210.85,210.78,16.6049]
[1731531804757,38.30674529,210.87,210.78,16.6049]
[1731531805646,38.30674529,210.87,210.79,38.30674529]
[1731531805840,38.30674529,210.89,210.81,38.30674529]
[1731531806050,43.04894529,210.87,210.8,16.6033]
[1731531806262,38.30674529,210.85,210.77,0.12549]
[1731531806753,38.30674529,210.83,210.77,0.12549]
[1731531807053,38.30674529,210.81,210.77,0.12549]
[1731531807763,38.30674529,210.83,210.77,0.12549]
[1731531808348,43.04994529,210.83,210.77,0.12549]
[1731531809457,38.30674529,210.83,210.78,4.7442]
[1731531809666,43.04954529,210.85,210.78,4.7442]
[1731531809859,38.30674529,210.89,210.8,38.30674529]
[1731531810239,43.04854529,210.89,210.81,16.6026]
[1731531810436,38.30674529,210.93,210.84,38.30674529]
[1731531810740,7.8465,210.98,210.86,38.30674529]
[1731531810741,38.30674529,210.95,210.86,38.30674529]
[1731531810939,38.30674529,210.93,210.84,38.30674529]
[1731531811455,38.30674529,210.93,210.81,16.6026]
[1731531811456,38.30674529,210.91,210.82,38.30674529]
[1731531811664,38.30674529,210.93,210.84,38.30674529]
[1731531812236,7.0304,211.04,210.86,38.30674529]
[1731531812460,7.0304,211.04,210.92,38.30674529]
[1731531812461,38.30674529,211.01,210.92,38.30674529]
[1731531812959,38.30674529,210.99,210.9,38.30674529]
[1731531813542,4.7397,210.98,210.9,43.04814529]
[1731531813854,38.30674529,210.97,210.89,11.8544]
[1731531814049,38.30674529,210.97,210.89,16.5962]
[1731531814253,38.30674529,211.01,210.92,38.30674529]
[1731531814562,43.04584529,211.01,210.92,38.30674529]
[1731531814758,43.04554529,211.03,210.94,38.30674529]
[1731531815063,38.30674529,211.03,210.94,38.30674529]
[1731531815446,38.30674529,211.03,210.94,43.04714529]
[1731531815649,43.04544529,211.03,210.94,43.04714529]
[1731531816345,38.30674529,211.01,210.94,16.5921]
[1731531816666,38.30674529,210.99,210.9,4.7415]
[1731531816872,38.30674529,210.93,210.8,26.5307]
[1731531817045,38.30674529,210.91,210.82,38.30674529]
[1731531817554,38.30674529,210.89,210.84,11.8569]
[1731531818150,38.30674529,210.91,210.84,11.8569]
[1731531818463,44.9669,211.01,210.84,50.16364529]
[1731531818464,38.30674529,210.93,210.84,50.16364529]
[1731531818670,38.30674529,210.99,210.9,38.30674529]
[1731531818861,4.7394,211.0,210.89,16.5963]
[1731531818862,38.30674529,210.97,210.89,16.5963]
[1731531819178,38.30674529,210.93,210.85,11.8566]
[1731531820379,43.04724529,210.95,210.86,38.30674529]
[1731531820663,38.30674529,210.97,210.88,38.30674529]
[1731531821039,38.30674529,210.99,210.9,38.30674529]
[1731531821268,38.30674529,211.01,210.92,38.30674529]
[1731531821765,38.30674529,210.97,210.89,0.12549]
[1731531822256,43.04674529,210.97,210.89,16.5963]
[1731531822457,38.30674529,210.97,210.89,16.5963]
[1731531822763,38.30674529,211.01,210.92,38.30674529]
[1731531822951,38.30674529,211.01,210.94,38.30674529]
[1731531824653,38.30674529,211.01,210.94,43.04714529]
[1731531825051,38.30674529,210.99,210.9,43.04804529]
[1731531825249,38.30674529,210.97,210.9,43.04804529]
[1731531825452,38.30674529,210.97,210.9,38.30674529]
[1731531825649,38.30674529,210.99,210.9,38.30674529]
[1731531825885,38.30674529,211.01,210.92,38.30674529]
[1731531826658,38.30674529,211.01,210.89,23.709]
[1731531826659,38.30674529,211.03,210.96,38.30674529]
[1731531826873,38.30674529,211.03,210.93,16.5931]
[1731531826874,38.30674529,211.03,210.94,38.30674529]
[1731531827055,38.30674529,210.99,210.93,11.8522]
[1731531827260,38.30674529,210.99,210.84,2.50144979]
[1731531827261,38.30674529,210.99,210.9,38.30674529]
[1731531827454,23.6148,211.04,210.88,50.16154529]
[1731531827455,38.30674529,210.97,210.88,50.16154529]
[1731531827772,38.30674529,210.95,210.88,50.16154529]
[1731531828176,38.30674529,210.95,210.88,11.8548]
[1731531828651,38.30674529,210.93,210.88,11.8548]
[1731531829269,38.30674529,210.91,210.84,4.7427]
[1731531829568,38.30674529,210.91,210.83,16.6008]
[1731531829772,38.30674529,210.91,210.84,38.30674529]
[1731531829957,38.30674529,210.93,210.84,38.30674529]
[1731531830157,38.30674529,210.92,210.85,38.30674529]
[1731531830550,38.30674529,210.94,210.85,38.30674529]
[1731531830751,38.30674529,210.92,210.86,16.5986]
[1731531831852,38.30674529,210.94,210.86,16.5986]
[1731531832451,38.30674529,210.92,210.86,16.5986]
[1731531833779,38.30674529,210.92,210.77,0.22549]
[1731531833780,38.30674529,210.87,210.78,38.30674529]
[1731531834164,38.30674529,210.87,210.8,38.30674529]
[1731531834462,38.30674529,210.89,210.8,38.30674529]
[1731531834853,23.73172738,210.89,210.8,23.73172738]
[1731531835189,23.73172738,210.87,210.81,11.859]
[1731531835478,23.73172738,210.87,210.81,16.6026]
[1731531836360,4.7419,210.89,210.82,23.73172738]
[1731531836361,23.73172738,210.89,210.82,23.73172738]
[1731531837189,23.73172738,210.91,210.82,23.73172738]
[1731531837672,23.73172738,210.91,210.83,16.6009]
[1731531837876,23.73172738,210.91,210.84,23.85721738]
[1731531838179,28.47262738,210.94,210.84,23.85721738]
[1731531838385,23.73172738,210.94,210.86,23.73172738]
[1731531839077,23.73172738,210.96,210.88,23.73172738]
[1731531839269,23.73172738,210.98,210.9,23.73172738]
[1731531839858,35.8922,210.91,210.73,24.7708]
[1731531840063,23.73172738,210.83,210.78,16.6049]
[1731531840561,23.73172738,210.85,210.78,16.6049]
[1731531840892,23.73172738,210.87,210.78,16.6049]
[1731531841059,23.73172738,210.89,210.8,23.73172738]
[1731531841774,23.73172738,210.87,210.78,40.33662738]
[1731531841957,23.73172738,210.87,210.79,0.12549]
[1731531842884,23.73172738,210.87,210.78,40.33662738]
[1731531842885,23.73172738,210.91,210.82,23.73172738]
[1731531843262,23.73172738,210.91,210.78,40.3263]
[1731531843263,23.73172738,210.87,210.78,40.33662738]
[1731531843659,23.73172738,210.85,210.78,16.6049]
[1731531843857,28.47402738,210.87,210.78,16.6049]
[1731531844176,23.73172738,210.85,210.78,16.6049]
[1731531844372,28.47402738,210.87,210.78,40.33662738]
[1731531845082,23.73172738,210.81,210.74,35.5877]
[1731531846779,23.73172738,210.79,210.77,0.12549]
[1731531846981,23.73172738,210.81,210.77,0.12549]
[1731531847359,23.73172738,210.81,210.74,15.73309]
[1731531848180,23.73172738,210.79,210.7,23.73172738]
[1731531848571,23.73172738,210.79,210.71,16.6103]
[1731531849083,23.73172738,210.73,210.67,17.0784158]
[1731531849293,23.73172738,210.69,210.67,0.4652158]
[1731531849587,23.776884,210.68,210.67,0.4652158]
[1731531850175,28.523384,210.68,210.67,0.4652158]
[1731531850389,28.523384,210.68,210.47,16.6292]
[1731531850390,23.73172738,210.55,210.47,16.6292]
[1731531850875,23.73172738,210.55,210.48,23.73172738]
[1731531851062,23.83172738,210.65,210.47,16.6292]
[1731531851063,23.73172738,210.59,210.5,23.73172738]
[1731531851264,23.73172738,210.55,210.47,19.17824371]
[1731531851460,23.73172738,210.53,210.47,11.878]
[1731531851689,23.73172738,210.55,210.47,11.878]
[1731531851887,23.73172738,210.57,210.48,23.73172738]
[1731531852264,23.73172738,210.57,210.49,4.7508]
[1731531852465,23.73172738,210.59,210.5,23.73172738]
[1731531852886,38.67057833,210.59,210.51,38.67057833]
[1731531853085,38.67057833,210.57,210.49,16.6278]
[1731531853465,38.67057833,210.57,210.49,11.877]
[1731531853687,38.67057833,210.55,210.49,16.6278]
[1731531854572,38.67057833,210.57,210.49,55.29837833]
[1731531854970,38.67057833,210.57,210.5,0.12549]
[1731531855266,38.67057833,210.59,210.5,0.12549]
[1731531855675,38.67057833,210.59,210.51,38.67057833]
[1731531856393,38.67057833,210.57,210.52,11.8753]
[1731531856593,38.67057833,210.61,210.53,38.67057833]
[1731531856898,38.67057833,210.55,210.47,50.54827833]
[1731531857076,38.67057833,210.55,210.48,4.7508]
[1731531857591,38.67057833,210.57,210.49,38.79606833]
[1731531858172,38.67057833,210.57,210.48,0.12549]
[1731531858372,38.67057833,210.57,210.49,11.877]
[1731531858774,38.67057833,210.53,210.46,0.4652158]
[1731531858973,38.67057833,210.53,210.46,5.2166158]
[1731531859382,38.67057833,210.53,210.46,0.4652158]
[1731531859606,38.67057833,210.55,210.46,12.3439158]
[1731531860198,38.67057833,210.55,210.46,17.0952158]
[1731531860592,38.67057833,210.55,210.47,38.67057833]
[1731531861480,38.67057833,210.55,210.48,16.6286]
[1731531862008,38.67057833,210.55,210.48,11.8776]
[1731531863979,38.67057833,210.55,210.48,16.6286]
[1731531864486,38.67057833,210.57,210.49,38.67057833]
[1731531864805,38.67057833,210.63,210.55,38.67057833]
[1731531864981,51.20387833,210.65,210.55,38.67057833]
[1731531865301,38.67057833,210.63,210.55,38.67057833]
[1731531866100,38.67057833,210.63,210.55,43.41997833]
[1731531866295,38.67057833,210.67,210.57,38.67057833]
[1731531866499,38.67057833,210.65,210.57,38.67057833]
[1731531867414,4.7465,210.68,210.55,55.29357833]
[1731531867415,38.67057833,210.63,210.55,55.29357833]
[1731531868229,38.67057833,210.65,210.57,38.67057833]
[1731531869202,4.7463,210.69,210.55,16.623]
[1731531869203,38.67057833,210.63,210.55,16.623]
[1731531869416,38.67057833,210.63,210.55,11.8736]
[1731531869716,38.67057833,210.59,210.5,50.54667833]
[1731531870595,38.67057833,210.63,210.54,38.67057833]
[1731531871119,38.67057833,210.61,210.54,38.67057833]
[1731531871415,38.67057833,210.61,210.49,4.7508]
[1731531871416,43.41877833,210.61,210.52,11.8753]
[1731531871705,43.41877833,210.61,210.53,38.67057833]
[1731531872008,38.67057833,210.54,210.46,0.4652158]
[1731531872218,38.67057833,210.48,210.46,0.4652158]
[1731531873103,7.4102,210.47,210.46,0.4652158]
[1731531873310,12.1614,210.47,210.46,0.4652158]
[1731531873986,7.4102,210.47,210.46,0.4652158]
[1731531874206,46.08077833,210.47,210.46,0.4652158]
[1731531874908,31.24353577,210.47,210.46,0.4652158]
[1731531876183,23.83333577,210.47,210.46,0.4652158]
[1731531876814,23.83333577,210.47,210.41,4.7525]
[1731531876998,23.83333577,210.47,188.65,83.65191807]
[1731531877325,0.32549,209.83,209.82,5.26e-06]
[1731531877489,171.36786154,209.83,209.82,5.26e-06]
[1731531877808,171.36786154,209.83,209.26,18.825]
[1731531877809,0.1,209.56,209.55,0.5207766]
[1731531878017,0.1,209.56,209.55,2.61795308]
[1731531878325,47.86667154,209.56,209.55,0.0207766]
[1731531878505,0.2,209.56,209.55,0.0207766]
[1731531878937,115.15922032,209.56,209.55,7.66e-05]
[1731531879098,0.1,209.39,209.26,16.38457043]
[1731531879294,0.1,209.4,209.33,0.10362496]
[1731531879600,35.54116816,209.37,209.11,23.43718152]
[1731531879811,0.1,209.4,209.31,35.54116816]
[1731531880015,0.1,209.4,209.2,7.5284]
[1731531880200,4.875,209.42,209.2,7.5284]
[1731531880408,0.1,209.45,209.36,35.54116816]
[1731531880610,0.1,209.42,209.35,35.54116816]
[1731531880938,0.1,209.43,209.33,35.54116816]
[1731531881095,0.1,209.43,209.35,35.54116816]
[1731531881294,0.1,209.46,209.37,35.54116816]
[1731531881599,0.1,209.49,209.43,35.54116816]
[1731531881797,0.1,209.52,209.43,35.54116816]
[1731531882008,0.1,209.62,209.51,35.54116816]
[1731531882212,19.099,209.77,209.34,18.8786]
[1731531882213,0.1,209.56,209.34,18.8786]
[1731531882419,35.54116816,209.67,209.53,35.54116816]
[1731531882628,4.768,209.73,209.57,35.54116816]
[1731531882919,4.768,209.73,209.4,35.54116816]
[1731531882920,35.54116816,209.63,209.46,0.1]
[1731531883222,35.54116816,209.61,209.41,0.1]
[1731531883430,4.7714,209.58,209.47,35.54116816]
[1731531883600,19.085004,209.62,209.36,0.2]
[1731531883796,35.54116816,209.55,209.43,35.54116816]
[1731531884134,4.7711,209.6,209.21,0.95471913]
[1731531884135,35.54116816,209.44,209.32,35.54116816]
[1731531884798,35.54116816,209.46,209.34,35.54116816]
[1731531885025,20.0,209.47,209.36,35.54116816]
[1731531885202,20.0,209.47,209.2,43.06956816]
[1731531885203,35.54116816,209.38,209.21,0.1]
[1731531885401,0.10844587,209.44,209.11,0.1]
[1731531885402,35.54116816,209.32,209.11,0.1]
[1731531885714,35.54116816,209.34,209.24,35.54116816]
[1731531886095,35.54116816,209.3,209.15,35.54116816]
[1731531886299,35.54116816,209.2,209.09,0.5097838]
[1731531886832,35.54116816,209.22,209.12,35.54116816]
[1731531887125,35.54116816,209.25,209.09,0.5097838]
[1731531887420,0.1,209.33,209.09,0.6097838]
[1731531887625,4.7769,209.34,209.22,0.1]
[1731531887835,4.7757,209.39,209.25,0.1]
[1731531888118,35.54116816,209.37,209.27,0.1]
[1731531888324,35.54116816,209.28,209.2,0.1]
[1731531888529,35.54116816,209.34,209.24,35.64116816]
[1731531888698,35.54116816,209.36,209.26,0.1]
[1731531888903,4.7757,209.39,209.26,0.1]
[1731531889097,4.7757,209.39,209.29,0.1]
[1731531889315,35.54116816,209.37,209.29,0.1]
[1731531889628,40.31756816,209.37,209.29,0.1]
[1731531890014,35.54116816,209.3,209.18,0.1]
[1731531890216,35.54116816,209.26,209.18,0.1]
[1731531890411,35.54116816,209.26,209.2,0.1]
[1731531890733,40.698,209.37,209.06,0.1]
[1731531890734,35.54116816,209.22,209.12,0.1]
[1731531890915,35.54116816,209.25,209.16,0.1]
[1731531891113,35.54116816,209.25,209.18,0.1]
[1731531891313,35.54116816,209.2,209.1,0.1]
[1731531891518,4.7794,209.23,209.11,35.64116816]
[1731531891723,35.54116816,209.22,209.13,0.1]
[1731531892028,35.54116816,209.3,209.09,0.5097838]
[1731531892029,70.0,209.39,209.24,0.1]
[1731531892232,4.7767,209.35,209.28,0.1]
[1731531892528,12.0372,209.43,209.28,0.1]
[1731531892723,23.8689,209.48,209.09,0.5097838]
[1731531892724,0.00844587,209.29,209.22,0.2]
[1731531893027,0.00844587,209.29,209.28,71.08233632]
[1731531893227,0.00844587,209.29,209.28,115.08471032]
[1731531893409,35.54116816,209.49,209.31,0.1]
[1731531893610,40.31476816,209.49,209.39,35.54116816]
[1731531893838,40.31476816,209.49,209.31,0.1]
[1731531893839,40.31416816,209.51,209.41,35.54116816]
[1731531894429,35.54116816,209.53,209.43,35.54116816]
[1731531894625,35.54116816,209.49,209.32,0.1]
[1731531894939,4.7725,209.53,209.22,23.776884]
[1731531894940,35.54116816,209.39,209.22,23.776884]
[1731531895235,35.54116816,209.43,209.33,35.54116816]
[1731531895531,35.54116816,209.39,209.29,35.54116816]
[1731531895913,35.54116816,209.43,209.28,0.1]
[1731531896116,35.54116816,209.43,209.34,35.54116816]
[1731531896313,35.54116816,209.41,209.32,35.54116816]
[1731531896840,35.54116816,209.39,209.28,35.54116816]
[1731531897132,4.8738,209.48,209.21,7.8465]
[1731531897133,35.54116816,209.4,209.29,35.54116816]
[1731531897348,35.54116816,209.4,209.31,35.54116816]
[1731531898334,4.7744,209.45,209.31,35.54116816]
[1731531898335,35.54116816,209.42,209.31,35.54116816]
[1731531898537,4.7744,209.45,209.35,35.54116816]
[1731531898911,35.54116816,209.44,209.33,35.54116816]
[1731531899223,35.54116816,209.37,209.27,35.54116816]
[1731531899421,35.54116816,209.41,209.32,35.54116816]
[1731531899620,74.8732,209.5,209.2,35.64116816]
[1731531899621,35.54116816,209.39,209.3,35.54116816]
[1731531899823,35.54116816,209.37,209.28,35.54116816]
[1731531900030,0.1,209.48,209.28,35.54116816]
[1731531900229,81.9331,209.5,209.34,35.54116816]
[1731531900230,35.54116816,209.45,209.34,35.54116816]
[1731531900414,40.31506816,209.47,209.36,35.54116816]
[1731531900819,40.31506816,209.47,209.28,0.1]
[1731531900820,35.54116816,209.4,209.22,0.1]
[1731531901024,35.54116816,209.4,209.22,0.2]
[1731531901224,76.61797794,209.55,209.37,35.54116816]
[1731531901528,35.54116816,209.49,209.39,35.54116816]
[1731531901727,40.31476816,209.49,209.39,35.54116816]
[1731531902118,35.54116816,209.43,209.35,35.54116816]
[1731531902321,35.54116816,209.45,209.36,35.54116816]
[1731531903144,35.54116816,209.45,209.23,35.54116816]
[1731531903145,35.54116816,209.37,209.23,35.54116816]
[1731531903331,35.54116816,209.32,209.23,35.54116816]
[1731531903529,122.186884,209.44,209.14,19.0357]
[1731531903530,35.54116816,209.38,209.29,35.54116816]
[1731531903732,35.54116816,209.34,209.25,35.54116816]
[1731531903929,35.54116816,209.32,209.23,35.54116816]
[1731531904146,35.54116816,209.38,209.29,35.54116816]
[1731531904330,35.54116816,209.34,209.21,0.12549]
[1731531904521,35.54116816,209.34,209.2,35.54116816]
[1731531904723,35.54116816,209.36,209.28,35.54116816]
[1731531904922,35.54116816,209.4,209.3,35.54116816]
[1731531905134,35.54116816,209.4,209.32,35.54116816]
[1731531905343,35.54116816,209.42,209.32,35.54116816]
[1731531905842,35.54116816,209.34,209.25,35.54116816]
[1731531906030,35.54116816,209.32,209.21,35.54116816]
[1731531906354,35.54116816,209.34,209.25,35.54116816]
[1731531906647,35.54116816,209.3,209.19,35.54116816]
[1731531906847,35.54116816,209.25,209.07,0.1]
[1731531907152,35.54116816,209.21,209.12,35.54116816]
[1731531907326,35.54116816,209.25,209.16,35.54116816]
[1731531907530,35.54116816,209.23,209.13,35.54116816]
[1731531907827,35.54116816,209.21,209.13,35.54116816]
[1731531908439,35.54116816,209.19,209.11,35.54116816]
[1731531908735,35.54116816,209.23,209.13,35.54116816]
[1731531908947,35.54116816,209.29,209.21,35.54116816]
[1731531909122,35.54116816,209.33,209.23,35.54116816]
[1731531909330,4.7757,209.39,209.18,0.22549]
[1731531909331,35.54116816,209.35,209.27,35.54116816]
[1731531909629,4.7753,209.41,209.31,35.54116816]
[1731531909936,40.31606816,209.43,209.36,35.54116816]
[1731531910140,40.31606816,209.43,209.34,35.54116816]
[1731531910445,35.54116816,209.41,209.32,35.54116816]
[1731531910654,35.54116816,209.43,209.34,35.54116816]
[1731531910842,35.54116816,209.47,209.39,35.54116816]
[1731531911028,35.54116816,209.45,209.37,35.54116816]
[1731531911230,35.54116816,209.43,209.33,35.54116816]
[1731531911449,35.54116816,209.41,209.33,35.54116816]
[1731531911632,35.54116816,209.39,209.31,35.54116816]
[1731531911935,35.54116816,209.5,209.37,35.54116816]
[1731531911936,35.54116816,209.45,209.37,35.54116816]
[1731531912274,35.54116816,209.45,209.35,35.54116816]
[1731531912555,40.31516816,209.47,209.38,35.54116816]
[1731531912753,4.774,209.47,209.4,35.54116816]
[1731531912924,35.54116816,209.55,209.46,35.54116816]
[1731531913128,4.7716,209.57,209.4,0.1]
[1731531913448,4.7716,209.57,209.48,35.54116816]
[1731531913651,35.54116816,209.58,209.5,35.54116816]
[1731531913959,35.54116816,209.58,209.42,0.22549]
[1731531913960,4.7707,209.61,209.53,35.54116816]
[1731531914159,54.62617216,209.62,209.53,35.54116816]
[1731531914525,35.54116816,209.59,209.51,35.54116816]
[1731531914724,35.54116816,209.57,209.47,35.54116816]
[1731531915033,35.54116816,209.55,209.47,35.54116816]
[1731531915234,35.54116816,209.57,209.49,35.54116816]
[1731531915738,40.31296816,209.57,209.49,35.54116816]